bitfinex/quotes_SOLUSD_20251001
["timestamp","ask_amount","ask_price","bid_price","bid_amount"]
[1759306670519,138.25561789,210.28,210.25,33.52]
[1759306670704,0.72,210.27,210.25,33.52]
[1759306671314,5.47594899,210.27,210.25,33.52]
[1759306671516,0.72,210.26,210.22,20.8]
[1759306671712,4.75594899,210.27,210.23,34.19]
[1759306672022,4.75594899,210.27,210.24,0.69]
[1759306672324,133.5,210.28,210.25,0.69]
[1759306673238,133.5,210.28,210.26,0.66]
[1759306673519,133.5,210.28,210.27,33.5]
[1759306674494,138.255564,210.28,210.27,33.5]
[1759306676224,133.5,210.28,210.27,33.5]
[1759306676632,138.255564,210.28,210.27,33.5]
[1759306677430,133.5,210.28,210.27,33.5]
[1759306679333,138.255564,210.28,210.27,33.5]
[1759306679828,133.5,210.28,210.27,33.5]
[1759306680317,138.255564,210.28,210.27,33.5]
[1759306680623,138.975564,210.28,210.27,33.5]
[1759306681810,133.5,210.28,210.27,33.5]
[1759306681994,138.255564,210.28,210.27,33.5]
[1759306682198,138.255564,210.28,210.25,37.1]
[1759306682199,133.5,210.28,210.25,37.1]
[1759306682416,134.22,210.28,210.27,33.44]
[1759306682929,138.9755786,210.28,210.27,33.44]
[1759306684719,138.2555786,210.28,210.27,33.44]
[1759306685231,133.5,210.28,210.27,33.44]
[1759306685729,178.00087923,210.34,210.27,34.1]
[1759306685929,0.72,210.32,210.27,34.1]
[1759306686112,0.72,210.31,210.27,33.44]
[1759306686722,0.72,210.31,210.27,34.1]
[1759306686925,4.75475898,210.32,210.27,33.44]
[1759306687104,4.75475898,210.32,210.28,0.66]
[1759306687431,4.75475898,210.32,210.29,34.1]
[1759306687728,5.47449882,210.33,210.3,33.44]
[1759306688131,0.72,210.32,210.3,33.44]
[1759306688823,0.72,210.31,210.3,33.44]
[1759306689215,0.72,210.31,210.27,0.66]
[1759306689412,4.75484083,210.32,210.28,33.44]
[1759306689617,4.75484083,210.32,210.29,33.44]
[1759306689815,5.47484083,210.32,210.29,33.44]
[1759306690422,4.7544335,210.33,210.29,33.44]
[1759306690626,0.72,210.32,210.29,33.44]
[1759306691108,4.7544335,210.33,210.29,33.44]
[1759306691309,0.72,210.31,210.29,33.44]
[1759306691510,5.4744335,210.33,210.29,33.44]
[1759306691930,4.7544335,210.33,210.29,33.44]
[1759306692120,4.75488564,210.31,210.29,33.44]
[1759306692628,157.92080992,210.34,210.29,34.1]
[1759306692816,5.4744335,210.33,210.29,33.44]
[1759306693022,4.7544335,210.33,210.29,33.44]
[1759306693212,0.72,210.32,210.29,33.44]
[1759306693833,4.7544335,210.33,210.29,33.44]
[1759306694036,5.4744335,210.33,210.29,33.44]
[1759306694637,5.4744335,210.33,210.3,33.4]
[1759306694927,4.7544335,210.33,210.3,34.06]
[1759306695132,157.20080992,210.34,210.31,0.66]
[1759306695133,145.3151119,210.34,210.31,0.66]
[1759306695532,145.3151119,210.34,210.3,38.15510787]
[1759306695735,11.8151119,210.34,210.32,0.66]
[1759306695931,11.8151119,210.34,210.33,33.4]
[1759306697241,3.19449835,210.39,210.33,33.4]
[1759306697242,27.21112761,210.4,210.33,34.06]
[1759306697442,26.20680447,210.4,210.33,34.06]
[1759306697744,5.47307761,210.39,210.34,0.66]
[1759306697923,5.47307761,210.39,210.35,0.66]
[1759306698122,5.47307761,210.39,210.36,33.4]
[1759306698321,2.65382326,210.42,210.36,33.4]
[1759306698322,4.75251681,210.42,210.36,33.4]
[1759306698634,5.47221195,210.43,210.37,0.66]
[1759306699025,5.47221195,210.43,210.38,4.75330354]
[1759306699220,0.72,210.43,210.39,34.12]
[1759306699815,4.75214978,210.44,210.39,34.12]
[1759306700018,0.69,210.47,210.4,0.7]
[1759306700238,3.05950012,210.47,210.4,0.7]
[1759306700538,0.69,210.47,210.41,33.42]
[1759306700747,0.69,210.46,210.41,33.42]
[1759306700912,5.44174418,210.45,210.41,33.42]
[1759306701114,5.44174418,210.45,210.41,34.12]
[1759306702528,0.79,210.48,210.42,0.7]
[1759306703126,5.5410512,210.48,210.42,0.7]
[1759306703443,5.5410512,210.48,210.43,33.42]
[1759306703640,0.67,210.47,210.43,33.42]
[1759306703821,0.67,210.47,210.43,34.1]
[1759306704631,5.42138502,210.47,210.43,34.1]
[1759306704831,5.42138502,210.47,210.43,33.42]
[1759306705645,5.42138502,210.47,210.43,34.1]
[1759306705942,4.75138502,210.47,210.44,0.68]
[1759306706325,4.75138502,210.47,210.43,33.42]
[1759306706527,4.75138502,210.47,210.43,34.1]
[1759306706828,0.1,210.48,210.44,37.76]
[1759306707348,0.1,210.48,210.45,0.68]
[1759306707650,0.1,210.48,210.46,33.38]
[1759306707832,0.1,210.48,210.46,34.06]
[1759306708443,0.1,210.48,210.46,33.38]
[1759306708754,0.1,210.48,210.47,33.38]
[1759306708755,5.52106454,210.48,210.47,33.38]
[1759306708933,4.85106454,210.48,210.47,33.38]
[1759306709535,5.52106454,210.48,210.47,33.38]
[1759306714144,4.85106454,210.48,210.47,33.38]
[1759306716955,0.1,210.48,210.47,33.38]
[1759306717146,4.85104522,210.48,210.47,33.38]
[1759306717341,4.85104522,210.48,210.44,37.76]
[1759306717544,4.85104522,210.48,210.45,33.36]
[1759306718275,4.85104522,210.48,210.45,34.04]
[1759306718776,4.85104522,210.48,210.45,33.36]
[1759306718937,0.1,210.48,210.46,0.68]
[1759306719742,0.1,210.48,210.47,0.68]
[1759306721446,0.1,210.48,210.47,34.04]
[1759306721738,0.1,210.48,210.47,33.36]
[1759306722253,0.1,210.48,210.47,34.04]
[1759306724060,0.1,210.48,210.47,33.36]
[1759306724373,0.1,210.48,210.47,34.04]
[1759306725837,4.85104522,210.48,210.47,33.36]
[1759306728064,0.1,210.48,210.47,33.36]
[1759306728365,0.1,210.48,210.47,34.04]
[1759306731154,0.1,210.48,210.47,0.68]
[1759306731446,0.1,210.48,210.47,34.02]
[1759306732556,0.1,210.48,210.47,33.34]
[1759306732951,0.1,210.48,210.47,34.02]
[1759306733265,0.1,210.48,210.47,33.34]
[1759306739279,5.53106274,210.48,210.44,37.08]
[1759306739471,0.68,210.47,210.44,37.08]
[1759306739673,0.68,210.46,210.45,33.34]
[1759306740581,5.43149672,210.46,210.45,33.34]
[1759306746260,4.75149672,210.46,210.45,33.34]
[1759306747186,4.75127096,210.47,210.45,33.34]
[1759306747488,4.85108851,210.48,210.45,34.02]
[1759306747659,4.85108851,210.48,210.45,33.34]
[1759306747660,5.53108851,210.48,210.45,33.34]
[1759306748065,4.85108851,210.48,210.45,34.02]
[1759306748291,5.53108851,210.48,210.45,33.34]
[1759306748470,4.85108851,210.48,210.45,34.02]
[1759306748878,0.1,210.48,210.45,34.02]
[1759306749066,0.1,210.48,210.46,0.68]
[1759306749268,0.1,210.48,210.47,33.34]
[1759306749574,0.1,210.48,210.47,34.02]
[1759306751300,0.1,210.48,210.47,38.77127096]
[1759306752974,0.1,210.48,210.47,42.56119313]
[1759306754400,0.1,210.48,210.47,38.77127096]
[1759306755202,0.1,210.55,210.47,68.02381073]
[1759306755495,0.1,210.55,210.51,4.75036815]
[1759306755676,0.1,210.55,210.52,33.34]
[1759306755876,0.1,210.55,210.52,34.02]
[1759306756098,0.68,210.54,210.52,33.34]
[1759306756276,0.1,210.55,210.52,33.34]
[1759306756472,0.1,210.55,210.53,33.34]
[1759306756996,0.1,210.55,210.51,0.68]
[1759306757212,0.1,210.55,210.52,33.34]
[1759306757375,0.1,210.55,210.52,38.76999072]
[1759306757577,0.1,210.55,210.53,0.68]
[1759306757907,0.1,210.55,210.54,34.02]
[1759306759300,0.1,210.55,210.54,35.92118586]
[1759306759609,0.1,210.55,210.54,40.67087713]
[1759306759911,0.1,210.55,210.54,54.26647114]
[1759306760899,0.76,210.55,210.54,33.34]
[1759306762904,5.50946568,210.55,210.54,33.34]
[1759306764901,0.1,210.55,210.54,33.34]
[1759306765446,0.8,210.55,210.54,33.34]
[1759306765593,0.8,210.55,210.51,0.7]
[1759306765794,0.8,210.55,210.52,33.34]
[1759306766498,0.8,210.55,210.53,33.34]
[1759306766705,0.8,210.55,210.48,11.87734877]
[1759306766706,0.7,210.54,210.48,0.7]
[1759306767094,0.7,210.54,210.49,33.34]
[1759306767300,0.7,210.54,210.5,0.7]
[1759306768410,0.7,210.54,210.49,33.34]
[1759306768608,0.7,210.53,210.49,38.0907674]
[1759306768803,0.1,210.55,210.5,0.7]
[1759306769009,0.8,210.55,210.5,0.7]
[1759306769302,0.1,210.55,210.51,0.7]
[1759306769488,0.1,210.55,210.52,33.32]
[1759306769686,0.8,210.55,210.52,33.32]
[1759306770492,0.1,210.55,210.53,37.04]
[1759306770702,0.1,210.55,210.53,37.74]
[1759306771181,0.1,210.55,210.53,37.04]
[1759306771997,0.1,210.55,210.53,41.78987441]
[1759306772203,0.1,210.55,210.53,42.48987441]
[1759306772507,0.1,210.55,210.54,33.32]
[1759306773388,4.64901174,210.58,210.54,34.02]
[1759306774202,133.5,210.59,210.54,38.06957897]
[1759306774403,133.5,210.59,210.55,0.7]
[1759306774703,133.5,210.59,210.56,33.32]
[1759306774882,138.24863484,210.59,210.56,33.32]
[1759306775405,138.94863484,210.59,210.56,33.32]
[1759306776609,0.7,210.58,210.53,37.04]
[1759306776812,138.24863484,210.59,210.54,33.32]
[1759306777015,0.7,210.58,210.54,0.7]
[1759306777218,0.7,210.58,210.55,33.32]
[1759306778414,5.44894562,210.58,210.55,33.32]
[1759306781316,0.7,210.59,210.55,34.02]
[1759306781523,0.7,210.58,210.55,33.32]
[1759306782320,4.74901457,210.57,210.55,33.32]
[1759306782722,4.74901457,210.57,210.54,0.7]
[1759306782920,4.74901457,210.57,210.55,33.32]
[1759306783517,2.21307658,210.56,210.53,37.04]
[1759306783703,0.7,210.55,210.54,33.32]
[1759306784513,4.74946568,210.55,210.54,33.32]
[1759306785128,5.44946568,210.55,210.54,33.32]
[1759306785722,4.74946568,210.55,210.54,33.32]
[1759306786317,5.44946568,210.55,210.54,33.32]
[1759306787959,6.96254226,210.55,210.53,37.04]
[1759306788133,6.26254226,210.55,210.54,33.32]
[1759306788736,6.96254226,210.55,210.53,37.04]
[1759306789034,4.74946568,210.55,210.54,33.32]
[1759306789207,19.01219799,210.57,210.54,33.32]
[1759306789521,4.74923653,210.57,210.54,34.02]
[1759306790229,138.24883119,210.58,210.55,0.7]
[1759306790530,138.24883119,210.58,210.56,33.32]
[1759306790943,133.5,210.58,210.56,34.02]
[1759306791118,133.5,210.58,210.56,33.32]
[1759306791317,133.5,210.58,210.57,0.7]
[1759306791518,4.74860802,210.59,210.57,0.7]
[1759306791714,4.74832108,210.61,210.58,34.02]
[1759306791940,4.74832108,210.61,210.59,33.32]
[1759306793036,0.1,210.62,210.59,33.32]
[1759306793229,0.1,210.62,210.6,0.7]
[1759306793437,0.1,210.62,210.61,33.32]
[1759306794624,0.1,210.62,210.61,34.02]
[1759306794844,0.1,210.62,210.61,33.32]
[1759306795346,4.84788719,210.62,210.61,33.32]
[1759306796056,5.54788719,210.62,210.61,33.32]
[1759306796426,4.84788719,210.62,210.61,33.32]
[1759306796644,5.54788719,210.62,210.58,0.7]
[1759306796951,4.84788719,210.62,210.59,33.32]
[1759306797133,4.84788719,210.62,210.59,34.02]
[1759306797857,0.1,210.62,210.59,33.32]
[1759306798057,0.1,210.62,210.6,0.7]
[1759306798546,4.84791497,210.62,210.6,0.7]
[1759306798947,0.1,210.62,210.6,0.7]
[1759306799351,4.84794558,210.62,210.6,0.7]
[1759306799535,4.84794558,210.62,210.59,33.32]
[1759306799739,7.91021923,210.62,210.59,33.32]
[1759306801459,5.54794558,210.62,210.59,33.32]
[1759306802462,2.36227365,210.6,210.53,37.74]
[1759306802636,2.36227365,210.55,210.53,37.04]
[1759306802835,3.06227365,210.55,210.53,37.04]
[1759306803033,3.06227365,210.55,210.54,33.32]
[1759306803240,2.36227365,210.55,210.54,33.32]
[1759306803564,2.36227365,210.56,210.54,34.02]
[1759306803866,2.36227365,210.55,210.54,33.32]
[1759306804256,2.36227365,210.56,210.54,33.32]
[1759306804456,7.11136835,210.57,210.54,33.32]
[1759306804952,2.36227365,210.55,210.53,37.04]
[1759306805160,3.06227365,210.55,210.54,33.32]
[1759306805340,2.36227365,210.56,210.54,33.32]
[1759306805540,4.7490947,210.57,210.54,34.02]
[1759306805751,11.87117385,210.6,210.54,33.32]
[1759306805936,14.2334475,210.6,210.55,0.7]
[1759306806135,14.2334475,210.6,210.56,0.7]
[1759306806136,12.57117385,210.6,210.56,0.7]
[1759306806369,12.57117385,210.6,210.57,33.32]
[1759306806542,2.46227365,210.62,210.57,34.02]
[1759306806857,0.7,210.61,210.57,34.02]
[1759306807036,17.31861424,210.61,210.57,34.02]
[1759306807345,16.61861424,210.61,210.57,33.32]
[1759306807546,4.74856355,210.59,210.57,33.32]
[1759306807754,0.7,210.58,210.57,33.32]
[1759306807953,4.74856355,210.59,210.57,33.32]
[1759306808250,0.8,210.62,210.57,34.02]
[1759306808455,17.31839418,210.61,210.57,34.02]
[1759306808655,17.31839418,210.61,210.57,33.32]
[1759306808843,17.31839418,210.61,210.57,34.02]
[1759306809161,17.31839418,210.61,210.58,33.32]
[1759306809660,4.74811262,210.61,210.58,33.32]
[1759306809867,4.74811262,210.61,210.59,0.7]
[1759306810157,4.74811262,210.61,210.58,33.32]
[1759306810342,4.74811262,210.61,210.58,34.02]
[1759306810545,4.74811262,210.61,210.56,0.7]
[1759306810767,4.74811262,210.61,210.57,34.02]
[1759306810944,4.74811262,210.61,210.58,34.02]
[1759306811144,16.61839418,210.61,210.58,33.32]
[1759306811646,16.61839418,210.61,210.58,34.02]
[1759306812863,4.74811262,210.61,210.58,33.32]
[1759306813050,4.74811262,210.61,210.58,34.02]
[1759306813250,4.74811262,210.61,210.58,33.32]
[1759306813454,4.74811262,210.61,210.59,0.7]
[1759306813660,4.74811262,210.61,210.6,0.7]
[1759306814174,0.1,210.62,210.6,0.7]
[1759306814466,0.1,210.62,210.61,3.06178513]
[1759306815569,4.84788719,210.62,210.61,2.36178513]
[1759306818269,0.1,210.62,210.61,2.36178513]
[1759306818449,0.1,210.62,210.61,3.06178513]
[1759306818845,0.1,210.62,210.61,7.80989775]
[1759306820354,0.1,210.62,210.61,41.10989775]
[1759306820540,0.1,210.62,210.61,52.34370663]
[1759306821181,0.1,210.62,210.61,41.10989775]
[1759306823457,0.1,210.62,210.61,38.74811262]
[1759306824375,0.1,210.62,210.61,34.0]
[1759306825156,0.1,210.62,210.61,38.74811262]
[1759306825663,0.1,210.62,210.61,0.7]
[1759306825852,0.1,210.62,210.61,57.11178513]
[1759306826054,0.1,210.62,210.61,36.31178513]
[1759306827475,0.1,210.62,210.61,2.36178513]
[1759306827476,5.53788719,210.62,210.61,2.36178513]
[1759306827664,5.53788719,210.62,210.61,33.3]
[1759306828462,0.1,210.62,210.61,33.3]
[1759306829253,4.84788719,210.62,210.61,33.3]
[1759306829987,0.1,210.62,210.61,33.3]
[1759306831174,4.84788719,210.62,210.61,33.3]
[1759306833765,4.84788719,210.62,210.6,37.04]
[1759306833964,5.53788719,210.62,210.61,33.3]
[1759306834576,4.84788719,210.62,210.61,33.3]
[1759306838892,4.84788719,210.62,210.6,37.04]
[1759306839084,5.53788719,210.62,210.61,33.3]
[1759306839886,4.84788719,210.62,210.61,33.3]
[1759306841197,5.53788719,210.62,210.61,33.3]
[1759306841778,5.53788719,210.62,210.6,37.04]
[1759306841980,8.08422089,210.61,210.6,37.04]
[1759306842188,8.08422089,210.61,210.6,70.34]
[1759306842695,8.08422089,210.61,210.6,37.04]
[1759306842880,8.08422089,210.61,210.6,70.34]
[1759306843089,8.08422089,210.61,210.6,37.04]
[1759306843275,8.08422089,210.61,210.6,70.34]
[1759306844601,8.08422089,210.61,210.6,33.3]
[1759306845096,19.95450245,210.61,210.6,33.3]
[1759306845401,17.59271732,210.61,210.6,33.3]
[1759306845598,19.95450245,210.61,210.6,33.3]
[1759306846099,17.59271732,210.61,210.6,33.3]
[1759306846413,0.1,210.62,210.6,36.31178513]
[1759306846578,0.1,210.62,210.61,3.01178513]
[1759306847073,0.1,210.62,210.61,28.55989775]
[1759306847270,0.1,210.62,210.61,23.81178513]
[1759306847474,0.1,210.62,210.61,28.55989775]
[1759306847687,0.1,210.62,210.61,61.85989775]
[1759306848203,0.1,210.62,210.61,54.65549176]
[1759306848876,0.1,210.65,210.61,54.65549176]
[1759306848877,0.1,210.65,210.64,20.8]
[1759306849118,1e-08,210.65,210.64,109.34913866]
[1759306849283,0.1,210.7,210.68,20.8]
[1759306849480,0.1,210.71,210.69,46.89559401]
[1759306849790,1.89951562,210.85,210.71,40.8]
[1759306849975,1.89951562,210.85,210.75,15.95737914]
[1759306850174,4.74092165,210.93,210.79,20.8]
[1759306850175,3.73092165,210.93,210.79,20.8]
[1759306850374,1.89906471,210.91,210.86,2.36178513]
[1759306850598,31.05984106,210.97,210.86,2.36178513]
[1759306850599,16.59082289,210.96,210.87,33.32]
[1759306850972,14.23994304,210.95,210.88,2.36178513]
[1759306851169,23.75834148,210.95,210.89,33.34]
[1759306851375,20.8,210.92,210.79,13.59559401]
[1759306851597,20.8,210.92,210.75,20.8]
[1759306851775,60.10218879,210.95,210.8,3.01178513]
[1759306851978,7.49999398,210.94,210.83,2.36178513]
[1759306852176,7.49999398,210.94,210.79,20.8]
[1759306852177,2.36178513,210.9,210.84,33.46]
[1759306852472,28.49883252,210.95,210.85,33.48]
[1759306852473,2.36178513,210.88,210.85,33.48]
[1759306852673,2.36178513,210.86,210.75,21.45]
[1759306852875,0.69,210.85,210.77,2.36178513]
[1759306853098,7.10494312,210.83,210.77,2.36178513]
[1759306853299,7.10494312,210.83,210.72,37.04]
[1759306853300,1.00432314,210.82,210.72,37.04]
[1759306853478,1.00432314,210.82,210.74,2.36178513]
[1759306853677,4.742826,210.85,210.79,2.36178513]
[1759306853879,2.36178513,210.8,210.72,37.04]
[1759306854072,4.742826,210.85,210.76,20.8]
[1759306854073,2.36178513,210.82,210.76,20.8]
[1759306854282,2.36178513,210.78,210.72,39.40178513]
[1759306854583,2.36178513,210.81,210.74,2.36178513]
[1759306854786,2.36178513,210.79,210.75,33.58]
[1759306854984,2.36178513,210.76,210.72,37.04]
[1759306855208,0.72,210.78,210.72,37.04]
[1759306855209,0.28432314,210.74,210.72,37.04]
[1759306855377,2.5039467,210.73,210.72,37.04]
[1759306855574,2.64610827,210.73,210.72,70.66]
[1759306855800,13.87991715,210.72,210.63,37.02]
[1759306855993,0.28432314,210.69,210.64,33.62]
[1759306856191,5.36146257,210.65,210.63,37.02]
[1759306856497,0.28432314,210.63,210.54,37.02]
[1759306856681,0.28432314,210.63,210.55,33.66]
[1759306856682,5.36146257,210.58,210.55,33.66]
[1759306857184,5.36146257,210.61,210.56,0.68]
[1759306857384,5.36146257,210.61,210.55,33.66]
[1759306857385,5.36146257,210.66,210.58,20.8]
[1759306857583,5.36146257,210.66,210.59,33.66]
[1759306857978,10.1082229,210.67,210.59,39.02146257]
[1759306858175,10.1082229,210.67,210.6,0.68]
[1759306858400,3.67332236,210.65,210.6,0.68]
[1759306858575,4.39332236,210.65,210.57,0.68]
[1759306858905,0.72,210.65,210.57,21.48]
[1759306859090,8.42090851,210.64,210.58,33.7]
[1759306859299,3.67332236,210.84,210.63,3.67332236]
[1759306859300,0.72,210.72,210.63,3.67332236]
[1759306859503,4.74473334,210.76,210.69,3.67332236]
[1759306859818,3.67332236,210.74,210.7,33.7]
[1759306859989,3.67332236,210.75,210.71,33.74]
[1759306860194,13.59559401,210.79,210.71,37.41332236]
[1759306860195,3.67332236,210.77,210.71,37.41332236]
[1759306860513,13.59559401,210.82,210.73,3.67332236]
[1759306860818,13.59559401,210.82,210.71,34.42]
[1759306860819,3.67332236,210.83,210.77,3.67332236]
[1759306860991,0.72,210.88,210.79,3.67332236]
[1759306861316,4.7409093,210.93,210.79,3.67332236]
[1759306861317,0.72,210.93,210.83,3.67332236]
[1759306861516,3.67332236,210.88,210.84,33.78]
[1759306861698,3.67332236,210.86,210.84,33.78]
[1759306862018,3.67332236,210.86,210.8,3.67332236]
[1759306862019,3.67332236,210.86,210.85,33.78]
[1759306862210,4.39332236,210.86,210.78,0.68]
[1759306862413,3.67332236,210.85,210.79,33.78]
[1759306862597,3.67332236,210.84,210.77,24.47332236]
[1759306862791,3.67332236,210.84,210.78,33.8]
[1759306863002,3.67332236,210.84,210.77,25.15332236]
[1759306863221,3.67332236,210.8,210.73,4.35332236]
[1759306863411,3.67332236,210.8,210.74,33.8]
[1759306863719,16.60262795,210.81,210.75,4.35332236]
[1759306864091,4.74331861,210.83,210.77,3.67332236]
[1759306864292,4.74331861,210.83,210.71,57.82]
[1759306864293,3.67332236,210.78,210.71,37.02]
[1759306864493,3.67332236,210.75,210.72,33.88]
[1759306864908,3.67332236,210.76,210.72,33.88]
[1759306865101,3.67332236,210.77,210.73,0.68]
[1759306865397,4.74441346,210.78,210.74,4.35332236]
[1759306865693,4.74401205,210.8,210.75,4.35332236]
[1759306865889,4.74401205,210.8,210.74,20.8]
[1759306866094,8.41733441,210.8,210.75,33.88]
[1759306866400,3.67332236,210.78,210.76,33.88]
[1759306866913,4.74401205,210.8,210.72,0.68]
[1759306867120,3.67332236,210.79,210.73,37.55332236]
[1759306867303,8.41757031,210.79,210.73,38.23332236]
[1759306868223,4.74424795,210.79,210.73,38.23332236]
[1759306868632,4.74424795,210.79,210.74,3.67332236]
[1759306868932,4.74424795,210.79,210.71,57.82]
[1759306868933,4.39332236,210.78,210.71,57.82]
[1759306869103,3.67332236,210.75,210.72,33.86]
[1759306869298,8.41818611,210.76,210.73,0.68]
[1759306869516,8.41818611,210.76,210.72,33.86]
[1759306869719,3.67332236,210.75,210.71,37.02]
[1759306869912,3.67332236,210.75,210.72,33.88]
[1759306870122,5.46486375,210.76,210.65,37.7]
[1759306870123,3.67332236,210.73,210.65,37.7]
[1759306870321,3.67332236,210.73,210.65,37.02]
[1759306870322,3.67332236,210.67,210.65,37.02]
[1759306870620,0.28432314,210.7,210.65,37.02]
[1759306870621,4.39332236,210.66,210.65,37.02]
[1759306870828,3.67332236,210.66,210.65,70.9]
[1759306870992,3.9576455,210.66,210.65,70.92]
[1759306871425,0.28432314,210.65,210.56,0.68]
[1759306871602,3.67332236,210.61,210.56,0.68]
[1759306871799,3.67332236,210.59,210.57,33.9]
[1759306872219,3.67332236,210.59,210.55,37.02]
[1759306872406,3.67332236,210.59,210.56,33.9]
[1759306872613,3.67332236,210.57,210.55,37.02]
[1759306872922,3.67332236,210.57,210.56,33.9]
[1759306873424,8.42568888,210.57,210.56,33.9]
[1759306874507,13.87991715,210.56,210.5,0.2]
[1759306874827,3.96099745,210.51,210.5,0.2]
[1759306875000,17.55659146,210.51,210.5,34.12]
[1759306875201,17.55659146,210.51,210.45,37.02]
[1759306875202,0.28432314,210.5,210.45,37.02]
[1759306875411,8.42817103,210.46,210.45,37.02]
[1759306875730,8.71249417,210.46,210.45,37.02]
[1759306876324,9.43249417,210.46,210.45,37.02]
[1759306876518,9.43249417,210.46,210.45,70.98]
[1759306876717,13.87991715,210.45,210.35,0.88]
[1759306876918,3.67667431,210.39,210.37,33.96]
[1759306877103,3.67667431,210.38,210.37,33.96]
[1759306877821,4.68099745,210.38,210.37,33.96]
[1759306878217,18.27659146,210.38,210.37,33.96]
[1759306878429,13.59559401,210.41,210.37,33.96]
[1759306878604,3.67667431,210.39,210.37,33.96]
[1759306878928,3.67667431,210.38,210.37,33.96]
[1759306879511,3.96099745,210.41,210.37,34.64]
[1759306879711,8.42936523,210.41,210.37,34.64]
[1759306879916,3.67667431,210.42,210.38,0.68]
[1759306880313,3.67667431,210.41,210.38,0.68]
[1759306881026,3.67667431,210.46,210.39,0.68]
[1759306881324,0.67,210.5,210.4,20.8]
[1759306881528,4.75025333,210.52,210.42,4.75239996]
[1759306881831,3.67667431,210.52,210.45,20.8]
[1759306882019,3.67667431,210.49,210.46,34.72]
[1759306882226,16.62412556,210.54,210.46,34.72]
[1759306882411,3.67667431,210.5,210.46,34.72]
[1759306882729,4.74989739,210.54,210.47,0.68]
[1759306882914,4.74932655,210.56,210.47,0.68]
[1759306883234,3.67667431,210.56,210.49,20.8]
[1759306883426,3.67667431,210.51,210.47,0.68]
[1759306883627,3.67667431,210.48,210.42,21.49]
[1759306883830,3.67667431,210.44,210.36,0.2]
[1759306884014,3.67667431,210.43,210.39,0.69]
[1759306884215,3.67667431,210.42,210.36,0.89]
[1759306884513,3.67667431,210.43,210.37,34.79]
[1759306884830,3.67667431,210.42,210.37,0.69]
[1759306885011,0.28432314,210.49,210.38,34.79]
[1759306885212,3.67667431,210.43,210.38,34.79]
[1759306885419,0.14216157,210.49,210.41,20.8]
[1759306885630,3.67667431,210.47,210.42,34.14]
[1759306885813,3.67667431,210.47,210.43,0.69]
[1759306886145,3.67667431,210.46,210.43,0.69]
[1759306886432,3.67667431,210.45,210.44,34.14]
[1759306886633,3.67667431,210.46,210.44,34.14]
[1759306886823,3.67667431,210.45,210.44,34.14]
[1759306887738,8.4283968,210.45,210.44,34.14]
[1759306888114,20.30770304,210.45,210.39,0.69]
[1759306888316,3.67667431,210.4,210.36,0.2]
[1759306888518,3.67667431,210.38,210.37,34.14]
[1759306888928,3.67667431,210.38,210.37,34.16]
[1759306889516,3.67667431,210.39,210.37,34.16]
[1759306889734,4.75330354,210.38,210.37,34.16]
[1759306890326,8.42997785,210.38,210.37,34.16]
[1759306890744,8.42997785,210.38,210.36,0.2]